bitfinex/quotes_ETHUSD_20250328
["timestamp","ask_amount","ask_price","bid_price","bid_amount"]
[1743172511697,0.7798,1891.3,1890.9,5.28848]
[1743172511871,5.9073846,1891.4,1891.1,5.28781]
[1743172512075,12.44741466,1891.4,1891.0,10.57612]
[1743172512288,7.16021466,1891.4,1891.0,5.2882]
[1743172512497,5.9073846,1891.4,1891.1,5.28792]
[1743172512663,5.9073846,1891.4,1891.3,5.28736]
[1743172512998,5.9073846,1891.8,1891.5,5.28666]
[1743172513201,5.9073846,1891.8,1891.4,10.60208]
[1743172513408,11.1934846,1891.8,1891.4,10.60208]
[1743172513639,7.10955406,1891.8,1891.5,5.28672]
[1743172514098,5.9073846,1891.8,1891.6,5.2865]
[1743172514478,5.9073846,1891.8,1891.7,5.28625]
[1743172514674,5.9073846,1891.8,1891.6,5.28632]
[1743172514882,0.82821,1891.9,1891.4,13.25588442]
[1743172514883,1e-05,1891.9,1891.4,7.96898442]
[1743172515178,1e-05,1891.9,1891.8,5.28597]
[1743172515598,1e-05,1891.9,1891.7,5.28604]
[1743172515771,1e-05,1891.9,1891.7,10.57205]
[1743172515971,1e-05,1891.9,1891.7,5.28601]
[1743172516225,1e-05,1891.9,1891.3,3.42988442]
[1743172516412,1e-05,1891.9,1891.5,5.28664]
[1743172516616,1e-05,1891.9,1891.7,5.28623]
[1743172516821,1e-05,1891.9,1891.8,5.28597]
[1743172517320,1e-05,1891.9,1891.7,10.57235]
[1743172517530,1e-05,1891.9,1891.6,5.28649]
[1743172518524,1e-05,1891.9,1891.6,10.57273]
[1743172519015,1e-05,1891.9,1891.4,7.97998442]
[1743172519016,5.9073946,1891.9,1891.4,5.28686]
[1743172519220,5.9073946,1891.9,1891.3,4.30163686]
[1743172519221,5.28644,1891.7,1891.3,10.5744]
[1743172519514,5.28644,1891.7,1891.3,5.28716]
[1743172520216,11.98949946,1891.8,1891.4,5.28705]
[1743172520518,5.9073946,1891.9,1891.5,2.65398442]
[1743172520695,5.9073946,1891.9,1891.7,7.94002442]
[1743172520901,5.9073946,1891.9,1891.7,5.28604]
[1743172521290,5.9073946,1891.9,1891.8,9.71997]
[1743172521605,5.9073946,1891.9,1891.8,5.28597]
[1743172524013,5.9073946,1891.9,1891.8,6.60856944]
[1743172524622,1e-05,1891.9,1891.8,6.60856944]
[1743172524810,1e-05,1891.9,1891.8,18.29777644]
[1743172524991,1e-05,1891.9,1891.8,5.28597]
[1743172525488,1e-05,1891.9,1891.7,5.28604]
[1743172525689,0.78301,1891.9,1891.7,5.28604]
[1743172526504,0.78301,1891.9,1891.8,5.28597]
[1743172527214,0.78301,1891.9,1891.7,5.2862]
[1743172527419,0.78301,1891.9,1891.7,10.57224]
[1743172527618,0.78301,1891.9,1891.6,5.28642]
[1743172527922,6.06881,1891.9,1891.5,5.28676]
[1743172528122,7.204245,1891.9,1891.5,5.28661]
[1743172528417,0.78301,1891.9,1891.3,6.03742]
[1743172528622,0.78301,1891.9,1891.7,5.28622]
[1743172528823,0.78301,1891.9,1891.6,5.28645]
[1743172529121,0.78301,1891.9,1891.6,10.57281]
[1743172529415,0.78301,1891.9,1891.6,5.28636]
[1743172529619,0.78301,1891.9,1891.2,3.0]
[1743172529620,5.2867,1891.6,1891.1,5.28776]
[1743172529821,6.11964,1891.2,1890.8,5.28866]
[1743172530037,0.8318,1891.2,1890.9,5.28834]
[1743172530241,5.28855,1890.9,1890.4,5.28963]
[1743172530390,6.03936,1890.8,1890.4,5.818743]
[1743172530590,0.7505,1890.8,1890.5,5.28946]
[1743172530802,0.7505,1890.8,1890.5,5.2894]
[1743172531200,0.7505,1890.8,1890.5,10.57901]
[1743172531496,0.7505,1890.8,1890.6,5.28931]
[1743172531734,0.20562067,1890.7,1890.5,5.28941]
[1743172533527,0.20562067,1890.7,1890.6,5.28932]
[1743172533744,0.20562067,1890.7,1890.5,6.347337]
[1743172534410,0.20562067,1890.7,1890.5,5.28941]
[1743172534708,0.20562067,1890.7,1890.5,10.57884]
[1743172534894,0.20562067,1890.7,1890.4,5.28979]
[1743172535230,0.20562067,1890.7,1890.5,5.28957]
[1743172535430,0.20562067,1890.7,1890.4,5.28979]
[1743172535606,0.20562067,1890.7,1890.4,11.74343784]
[1743172535807,0.20562067,1890.7,1890.5,5.28958]
[1743172537008,0.20562067,1890.7,1890.5,5.28944]
[1743172537212,0.20562067,1890.7,1890.5,10.57887]
[1743172537532,0.20562067,1890.7,1890.5,5.28943]
[1743172538722,0.20562067,1890.7,1890.5,10.57885]
[1743172538929,0.20562067,1890.7,1890.5,6.44151658]
[1743172539127,0.20562067,1890.7,1890.5,5.28942]
[1743172539326,0.20562067,1890.7,1890.4,5.28987]
[1743172539496,0.20562067,1890.7,1890.4,10.57961]
[1743172539700,0.20562067,1890.7,1890.0,5.29097]
[1743172539701,0.8148,1890.4,1890.0,5.29097]
[1743172539895,6.10487,1890.4,1890.1,5.29069]
[1743172540101,0.19427773,1890.3,1890.1,5.29069]
[1743172540501,0.8148,1890.4,1890.1,5.29069]
[1743172541002,0.19427773,1890.3,1890.1,5.29069]
[1743172541197,5.9073846,1890.7,1890.1,3.76505301]
[1743172541401,0.17741295,1890.6,1890.5,5.2896]
[1743172541829,5.9073846,1890.7,1890.5,5.2896]
[1743172542032,5.9073846,1890.7,1890.5,5.28947]
[1743172542332,6.08252,1890.9,1890.6,5.28932]
[1743172542333,0.794,1890.9,1890.6,5.28932]
[1743172542537,5.9073846,1891.0,1890.7,5.817972]
[1743172542722,5.9073846,1891.0,1890.8,5.28865]
[1743172542919,5.9073846,1891.0,1890.8,10.57728]
[1743172543236,5.9073846,1891.0,1890.8,5.28863]
[1743172543527,5.9073846,1891.0,1890.9,5.28848]
[1743172543752,0.8203,1891.2,1891.0,5.28808]
[1743172543936,0.8203,1891.2,1891.0,5.28802]
[1743172544099,0.8203,1891.2,1890.9,5.28845]
[1743172544296,6.10811,1891.2,1890.8,6.3993482]
[1743172544511,0.8203,1891.2,1890.9,5.28833]
[1743172544713,0.8203,1891.2,1890.9,5.96479422]
[1743172545131,6.10796,1891.2,1890.9,5.96479422]
[1743172545504,11.39581,1891.2,1890.9,0.67646422]
[1743172545839,11.39581,1891.2,1890.7,5.28901]
[1743172545840,0.8203,1891.2,1890.7,5.28899]
[1743172546005,5.28807,1891.1,1890.7,5.28899]
[1743172546333,5.28807,1891.1,1890.7,10.57791]
[1743172546519,6.10797,1891.2,1890.7,5.28893]
[1743172546725,5.28794,1891.1,1890.7,5.28899]
[1743172546941,5.28794,1891.1,1890.8,5.28875]
[1743172547247,6.10796,1891.2,1890.9,5.28847]
[1743172547457,6.10796,1891.2,1890.8,5.28855]
[1743172547660,11.39581,1891.2,1890.8,5.28855]
[1743172548050,5.28794,1891.1,1890.7,5.28893]
[1743172548357,12.0153446,1891.2,1890.8,10.57739]
[1743172548821,6.7276846,1891.2,1890.9,5.28846]
[1743172549018,12.0153446,1891.2,1890.9,5.28846]
[1743172549234,17.3032346,1891.2,1890.8,6.35458296]
[1743172549433,12.0153446,1891.2,1890.8,6.35458296]
[1743172549651,12.0153446,1891.2,1890.8,11.64318296]
[1743172549966,12.0153446,1891.2,1890.9,5.28848]
[1743172550122,12.0153446,1891.2,1890.8,6.35445296]
[1743172550319,5.28804,1891.1,1890.8,6.35445296]
[1743172550524,12.0153446,1891.2,1890.8,6.35444296]
[1743172550946,12.0153446,1891.2,1890.9,5.28838]
[1743172551556,12.0153446,1891.2,1890.8,6.35453296]
[1743172551735,12.0153446,1891.2,1890.8,11.64308296]
[1743172552155,6.7276846,1891.2,1890.9,5.28839]
[1743172552355,6.7276846,1891.2,1890.9,5.28838]
[1743172553024,12.0153346,1891.2,1890.8,1.06585296]
[1743172553228,5.28805,1891.1,1890.8,6.35458296]
[1743172553451,7.40045306,1891.2,1890.8,1.06585296]
[1743172553773,7.40045306,1891.2,1890.7,5.28888]
[1743172553774,0.7914,1890.9,1890.6,5.28923]
[1743172553927,0.7914,1890.9,1890.6,5.28919]
[1743172554254,0.16157315,1890.8,1890.6,5.28919]
[1743172554458,5.28918,1890.7,1890.0,0.7531]
[1743172554663,5.9073846,1890.7,1890.3,5.29016]
[1743172554829,11.1964346,1890.7,1890.4,5.28986]
[1743172555027,0.16157315,1890.6,1890.4,5.28986]
[1743172555233,5.9073846,1890.7,1890.5,10.57904]
[1743172555430,5.9073846,1890.7,1890.5,5.28944]
[1743172555850,5.9073846,1890.7,1890.6,5.28932]
[1743172556959,5.9073846,1890.7,1890.5,5.28944]
[1743172557169,5.9073846,1890.7,1890.6,5.28932]
[1743172557763,5.9073846,1890.7,1890.5,5.28944]
[1743172558563,5.9073846,1890.7,1890.6,5.28932]
[1743172559642,6.6987846,1890.9,1890.7,5.28878]
[1743172560029,6.6987846,1890.9,1890.8,5.28876]
[1743172560030,5.9073846,1890.9,1890.8,5.28876]
[1743172560239,11.1959746,1890.9,1890.6,5.28921]
[1743172560437,5.9073846,1890.9,1890.6,5.28918]
[1743172560948,5.9073846,1890.9,1890.7,5.28892]
[1743172561533,5.9073846,1890.9,1890.6,5.28927]
[1743172561534,5.28925,1890.7,1890.2,5.29031]
[1743172561845,5.29019,1890.3,1890.0,5.2908]
[1743172562046,5.9073846,1890.3,1890.0,5.2908]
[1743172562240,11.1975846,1890.3,1889.9,5.29128]
[1743172562444,0.8124,1890.2,1889.8,5.29154]
[1743172562648,7.30397846,1890.2,1889.8,10.58298]
[1743172562856,2.01339846,1890.2,1889.8,5.29139]
[1743172563059,0.8124,1890.2,1890.0,5.29096]
[1743172563481,0.8124,1890.2,1889.9,10.58242]
[1743172563678,0.8124,1890.2,1890.0,5.29095]
[1743172564184,0.8124,1890.2,1890.0,5.29078]
[1743172564538,0.8124,1890.2,1889.9,5.29119]
[1743172564846,0.8124,1890.2,1889.9,10.58232]
[1743172565159,0.8124,1890.2,1889.9,5.29113]
[1743172565358,6.10299,1890.2,1889.8,5.29144]
[1743172565686,6.10299,1890.2,1889.7,5.29159]
[1743172565687,5.29097,1890.1,1889.6,1.82337614]
[1743172565842,6.10285,1890.2,1889.8,5.29137]
[1743172566242,5.29085,1890.1,1889.7,5.29158]
[1743172566476,5.29085,1890.1,1889.6,6.34754614]
[1743172566761,5.29085,1890.1,1889.7,5.29183]
[1743172566963,1.1799385,1890.1,1889.8,5.29138]
[1743172567151,6.10286,1890.2,1889.8,5.29138]
[1743172567350,5.29073,1890.1,1889.7,5.29171]
[1743172567753,5.29073,1890.1,1889.6,11.63979614]
[1743172567754,5.29108,1890.0,1889.6,11.63979614]
[1743172567957,6.08982,1889.9,1889.5,5.29236]
[1743172568375,6.08982,1889.9,1889.4,6.07321]
[1743172568376,0.7984,1889.9,1889.6,5.29194]
[1743172568586,0.7984,1889.9,1889.6,5.29202]
[1743172568951,0.14408263,1889.8,1889.6,5.29202]
[1743172569150,0.7984,1889.9,1889.6,10.58402]
[1743172569340,0.14408263,1889.8,1889.5,6.34340409]
[1743172569678,11.1989646,1889.8,1889.5,1.05106409]
[1743172570037,0.14408263,1889.7,1889.5,1.05106409]
[1743172570244,12.39158735,1889.7,1889.5,1.05106409]
[1743172570580,12.39158735,1889.7,1889.0,3.8027]
[1743172570581,5.29273,1889.4,1889.0,5.29378]
[1743172570745,5.29273,1889.4,1888.9,5.29407]
[1743172570746,6.1977601,1889.3,1888.9,5.29407]
[1743172570949,12.1051447,1889.3,1888.9,5.29407]
[1743172571146,6.8120447,1889.3,1889.0,5.29365]
[1743172571452,6.8120447,1889.3,1888.9,5.29407]
[1743172571658,12.1051647,1889.3,1889.0,1.03389434]
[1743172572056,5.29352,1889.1,1889.0,1.03389434]
[1743172572261,5.29385,1889.0,1888.6,5.29491]
[1743172572461,5.29385,1889.0,1888.6,10.58966]
[1743172572778,0.12979914,1888.9,1888.6,10.58966]
[1743172572975,0.12979914,1888.9,1888.6,5.29475]
[1743172573380,0.7965,1888.7,1888.4,5.29535]
[1743172573686,0.7965,1888.7,1888.4,5.29532]
[1743172573848,0.12703025,1888.6,1888.4,5.29532]
[1743172574350,0.12703025,1888.6,1888.2,5.29579]
[1743172574669,11.32946485,1888.6,1888.2,5.29579]
[1743172575381,6.03441485,1888.6,1888.3,5.29576]
[1743172575543,6.03441485,1888.6,1888.2,5.29598]
[1743172575749,11.32934485,1888.6,1888.2,5.29598]
[1743172576254,6.03441485,1888.6,1888.2,5.29598]
[1743172576458,11.32934485,1888.6,1888.2,5.29598]
[1743172576659,11.32934485,1888.6,1888.2,10.59183]
[1743172576875,5.29523,1888.5,1888.2,5.29585]
[1743172577284,0.1089304,1888.4,1888.3,5.29576]
[1743172577783,0.1089304,1888.4,1888.3,5.29557]
[1743172578079,5.9073846,1888.6,1888.4,5.29535]
[1743172578751,5.9073846,1888.6,1888.3,10.59119]
[1743172579092,11.2023646,1888.6,1888.2,5.29604]
[1743172579380,0.7811,1888.4,1888.1,0.05]
[1743172579545,7.63673506,1888.6,1888.3,5.29576]
[1743172579546,6.6899846,1888.6,1888.3,5.29576]
[1743172579751,6.6899846,1888.6,1888.4,5.29542]
[1743172580176,6.6899846,1888.6,1888.4,10.59073]
[1743172580482,6.6899846,1888.6,1888.3,5.29573]
[1743172581384,6.6899846,1888.6,1888.3,10.59131]
[1743172581678,11.9849046,1888.6,1888.3,5.29558]
[1743172581880,7.88846606,1888.6,1888.1,0.05]
[1743172582081,0.8058,1888.3,1888.1,0.05]
[1743172582685,5.29604,1888.2,1888.1,0.05]
[1743172582984,5.9073846,1888.2,1888.1,0.05]
[1743172583366,12.44344602,1888.2,1888.1,0.05]
[1743172583568,7.14740602,1888.2,1888.1,0.05]
[1743172583762,12.44344602,1888.2,1888.1,0.05]
[1743172584091,6.01463788,1888.2,1888.1,0.05]
[1743172584294,11.31067788,1888.2,1888.1,0.05]
[1743172584656,6.01463788,1888.2,1888.1,0.05]
[1743172586969,6.01463788,1888.2,1888.1,5.34632]
[1743172587678,5.9073846,1888.2,1888.1,5.34632]
[1743172587891,5.9073846,1888.2,1888.1,6.410607]
[1743172588586,0.3612,1888.4,1888.3,5.29576]
[1743172589162,0.3612,1888.4,1888.3,7.94974442]
[1743172589673,0.3612,1888.4,1888.3,8.76414442]
[1743172590292,5.9073846,1889.1,1888.9,5.29388]
[1743172590897,5.9073846,1889.1,1888.5,1.08332625]
[1743172591109,5.29393,1889.0,1888.6,5.29488]
[1743172591387,6.87348306,1889.1,1888.8,5.29421]
[1743172591758,12.16707306,1889.1,1888.8,5.29421]
[1743172592096,5.9073846,1889.1,1888.5,7.94916442]
[1743172592294,5.9073846,1889.1,1888.9,5.29397]
[1743172592473,5.9073846,1889.1,1889.0,5.2938]
[1743172594699,11.3421,1889.4,1889.2,5.29296]
[1743172594700,0.7674,1889.4,1889.2,5.29296]
[1743172594927,5.9073846,1889.5,1889.3,5.29296]
[1743172595202,5.9073846,1889.5,1889.1,0.8067]
[1743172595396,5.9073846,1889.5,1889.2,5.29298]
[1743172595578,5.9073846,1889.5,1889.2,10.58599]
[1743172595777,5.9073846,1889.5,1889.1,0.8067]
[1743172596102,11.87088306,1889.5,1889.1,5.29338]
[1743172596320,11.87088306,1889.5,1889.1,5.29334]
[1743172596472,5.29278,1889.4,1889.1,5.29334]
[1743172596803,5.29278,1889.4,1889.0,10.5874]
[1743172597003,5.29278,1889.4,1889.1,5.29344]
[1743172597373,0.7834,1889.2,1888.9,10.588]
[1743172597593,0.11063645,1889.1,1888.9,5.29395]
[1743172597794,5.29381,1889.0,1888.7,5.29452]
[1743172598004,5.9073846,1889.1,1888.9,5.29402]
[1743172598175,0.70137491,1889.0,1888.6,5.29472]
[1743172598483,0.11063645,1889.0,1888.7,5.29448]
[1743172598893,0.11063645,1889.0,1888.6,5.29489]
[1743172599094,0.11063645,1889.0,1888.7,5.29454]
[1743172599276,5.40448645,1889.0,1888.6,5.29484]
[1743172599478,6.08437,1888.9,1888.5,10.59034]
[1743172599677,13.14064025,1888.9,1888.5,5.29517]
[1743172599889,0.10979815,1888.8,1888.5,5.29517]
[1743172600292,13.14055025,1888.9,1888.5,5.29517]
[1743172600491,0.10979815,1888.7,1888.6,5.29492]
[1743172600694,5.29441,1888.8,1888.4,5.2953]
[1743172601011,1.31407802,1888.8,1888.5,5.29505]
[1743172601314,1.31407802,1888.8,1888.5,5.29502]
[1743172601504,6.60862802,1888.8,1888.4,5.29548]
[1743172601711,1.31407802,1888.8,1888.4,5.2953]
[1743172601883,6.6974846,1888.9,1888.6,5.2948]
[1743172602580,11.9915746,1888.9,1888.6,5.2948]
[1743172602909,11.9915746,1888.9,1888.5,5.29501]
[1743172603211,11.9915746,1888.9,1888.6,5.2949]
[1743172603575,5.29437,1888.8,1888.5,5.29501]
[1743172603787,7.02296446,1888.8,1888.4,5.29547]
[1743172603993,7.02296446,1888.8,1888.4,5.29532]
[1743172604606,7.02296446,1888.8,1888.4,10.59061]
[1743172604811,1.72859446,1888.8,1888.5,5.29509]
[1743172605013,7.02297446,1888.8,1888.5,5.29509]
[1743172605206,1.72859446,1888.8,1888.5,5.29509]
[1743172606922,11.9915746,1888.9,1888.6,5.2949]
[1743172607082,11.9915746,1888.9,1888.5,5.29509]
[1743172607083,11.9915746,1888.9,1888.5,5.29513]
[1743172607930,5.29468,1888.7,1888.3,10.59114]
[1743172608086,5.29451,1888.8,1888.4,5.29539]
[1743172608280,10.58912,1888.8,1888.4,5.29539]
[1743172608494,5.29495,1888.6,1888.3,5.29553]
[1743172608829,0.7861,1888.5,1888.3,5.29553]
[1743172609522,6.08131,1888.5,1888.2,6.34027979]
[1743172609715,0.7861,1888.5,1888.2,11.63618979]
[1743172609922,0.7861,1888.5,1888.2,6.34018979]
[1743172610394,1.394205,1888.5,1888.2,6.34018979]
[1743172610590,1.394205,1888.5,1888.3,5.29574]
[1743172610828,6.7118846,1888.7,1888.4,5.29548]
[1743172611031,6.7118846,1888.7,1888.4,5.2952]
[1743172611190,6.7118846,1888.7,1888.5,5.29519]
[1743172611385,5.9073846,1888.7,1888.5,5.29511]
[1743172611681,5.9073846,1888.7,1888.5,10.5902]
[1743172611880,5.9073846,1888.7,1888.5,5.29509]
[1743172612114,5.9073846,1888.7,1888.5,10.59012]
[1743172612518,5.9073846,1888.7,1888.6,5.29492]
[1743172614288,5.9073846,1888.7,1888.5,5.29503]
[1743172614483,5.9073846,1888.7,1888.5,10.59009]
[1743172614795,0.7828,1888.6,1888.1,0.05]
[1743172615112,6.07773,1888.6,1888.2,10.59183]
[1743172615518,6.07777,1888.6,1888.1,5.34611]
[1743172615713,5.29562,1888.4,1888.1,0.05]
[1743172615901,5.29577,1888.3,1888.1,0.05]
[1743172616394,0.8179,1888.2,1888.1,0.05]
[1743172617022,12.0213246,1888.2,1888.1,0.05]
[1743172617221,14.2034246,1888.2,1888.1,0.05]
[1743172617423,15.5505246,1888.2,1888.1,0.05]
[1743172618126,15.0005246,1888.2,1888.1,0.05]
[1743172619092,9.7044846,1888.2,1888.1,0.05]
[1743172619507,15.0005246,1888.2,1888.1,0.05]
[1743172619825,9.7044846,1888.2,1888.1,0.05]
[1743172620021,6.7044846,1888.2,1888.1,0.05]
[1743172620421,12.0005246,1888.2,1888.1,0.05]
[1743172620630,13.49437306,1888.2,1888.1,0.05]
[1743172621342,6.7044846,1888.2,1888.1,0.05]
[1743172621524,12.0005246,1888.2,1888.1,0.05]
[1743172621725,15.19990801,1888.2,1888.1,0.05]
[1743172621929,15.0005246,1888.2,1888.1,0.05]
[1743172622500,17.64990801,1888.2,1888.1,0.05]
[1743172622744,20.60038971,1888.2,1888.1,0.05]
[1743172623739,17.4010063,1888.2,1888.1,0.05]
[1743172625343,20.60038971,1888.2,1888.1,0.05]
[1743172627112,3.0,1887.9,1887.4,10.59621]
[1743172627317,5.29745,1887.7,1887.4,5.29809]
[1743172627539,6.41293346,1887.7,1887.3,11.38709]
[1743172627741,6.41293346,1887.7,1887.3,6.08855]
[1743172627954,6.6405846,1887.6,1887.1,6.13142]
[1743172628114,5.29934,1887.1,1886.7,5.30013]
[1743172628442,5.29934,1887.1,1886.6,0.7501]
[1743172628443,5.8573846,1887.0,1886.8,5.29983]
[1743172628601,5.8573846,1887.0,1886.8,5.29979]
[1743172629002,5.8573846,1887.0,1886.8,6.37240312]
[1743172629629,5.8573846,1887.0,1886.9,5.29969]
[1743172629829,5.8573846,1887.0,1886.8,5.29979]
[1743172630143,5.8573846,1887.0,1886.9,5.29969]
[1743172630846,5.8573846,1887.0,1886.8,10.59959]
[1743172631052,5.8573846,1887.0,1886.7,5.30022]
[1743172631352,5.8573846,1887.0,1886.8,5.29996]
[1743172631705,5.8573846,1887.0,1886.8,5.29979]
[1743172632097,5.8573846,1887.0,1886.9,5.29969]
[1743172632733,5.8573846,1887.0,1886.9,6.11999]
[1743172632898,11.1559546,1887.3,1886.9,11.41968]
[1743172633105,5.8573846,1887.3,1886.9,6.11999]
[1743172633304,5.8573846,1887.3,1887.1,10.59798]
[1743172633706,5.8573846,1887.3,1887.2,5.29885]
[1743172634514,5.8573846,1887.6,1887.5,5.29801]
[1743172636536,5.8573846,1887.6,1887.5,6.10271]
[1743172639441,2.36956986,1887.8,1887.7,5.29745]
[1743172639658,2.36956986,1887.8,1887.6,5.29769]
[1743172639845,2.36956986,1887.8,1887.6,5.29759]
[1743172640154,3.19226531,1887.8,1887.6,10.59518]
[1743172640329,2.36956986,1887.8,1887.6,10.59518]
[1743172641158,2.36956986,1887.8,1887.6,5.29759]
[1743172641329,2.36956986,1887.8,1887.6,10.59511]
[1743172641553,2.36956986,1887.8,1887.5,0.8047]
[1743172641744,3.15776986,1887.8,1887.5,5.2979]
[1743172641945,4.51016431,1887.8,1887.6,5.29772]
[1743172642675,3.72196431,1887.8,1887.3,1.82171778]
[1743172642881,3.72196431,1887.8,1887.5,10.59566]
[1743172643177,3.72196431,1887.8,1887.6,5.2976]
[1743172644078,2.36956986,1887.8,1887.6,5.2976]
[1743172644301,7.66673986,1887.8,1887.5,5.2979]
[1743172644447,2.36956986,1887.8,1887.5,10.59575]
[1743172644779,5.8573846,1887.7,1887.5,10.59575]
[1743172644950,5.8573846,1887.7,1887.6,5.29773]
[1743172645147,5.8573846,1887.7,1887.5,5.29785]
[1743172645346,5.29817,1887.5,1887.0,5.29921]
[1743172645560,5.29857,1887.3,1887.0,5.29921]
[1743172645765,5.8573846,1887.3,1887.0,10.59847]
[1743172645989,5.8573846,1887.3,1887.0,5.29921]
[1743172646364,6.11246,1887.2,1886.9,5.29957]
[1743172646573,7.5755169,1887.2,1886.9,5.29957]
[1743172646877,2.2765569,1887.2,1886.9,5.29957]
[1743172647260,2.2765569,1887.2,1886.9,10.59914]
[1743172647460,2.2765569,1887.2,1886.8,10.59984]
[1743172647655,7.5755169,1887.2,1886.8,5.29987]
[1743172647856,0.75755169,1887.1,1886.8,5.29987]
[1743172648078,6.05678169,1887.1,1886.8,5.29987]
[1743172648277,0.75755169,1887.1,1886.8,10.59969]
[1743172648459,0.75755169,1887.1,1886.9,5.29959]
[1743172648859,0.75755169,1887.1,1886.8,5.29982]
[1743172649089,6.05678169,1887.1,1886.7,11.36346]
[1743172649299,6.46306277,1887.0,1886.8,5.29995]
[1743172649673,11.76260277,1887.0,1886.6,5.30051]
[1743172649872,11.76260277,1887.0,1886.6,10.6009]
[1743172650072,11.76260277,1887.0,1886.7,5.30025]
[1743172650495,11.76260277,1887.0,1886.6,10.60082]
[1743172650677,11.76260277,1887.0,1886.6,5.30035]
[1743172650868,6.46306277,1887.0,1886.7,10.6001]
[1743172651062,6.46306277,1887.0,1886.7,5.30002]
[1743172651866,6.46306277,1887.0,1886.7,10.60012]
[1743172652162,5.8573846,1887.0,1886.9,5.29969]
[1743172652366,5.8573846,1887.0,1886.9,6.12319]
[1743172653509,5.8573846,1887.4,1887.2,5.29875]
[1743172653714,5.8573846,1887.4,1887.1,10.5981]
[1743172654283,5.8573846,1887.4,1887.1,5.29902]
[1743172654483,12.27134906,1887.4,1887.1,5.29902]
[1743172654696,5.29866,1887.3,1887.0,10.59867]
[1743172655027,12.27134906,1887.4,1887.0,10.59867]
[1743172655319,6.97292906,1887.4,1887.1,5.29892]
[1743172655906,1.11554446,1887.4,1887.1,5.29903]
[1743172656108,8.29806,1887.5,1887.1,5.29893]
[1743172656316,6.08102,1887.3,1886.9,5.29956]
[1743172656479,6.08102,1887.3,1886.7,1.86036969]
[1743172656480,0.7823,1887.3,1887.0,5.29932]
[1743172656683,6.08104,1887.3,1887.0,5.29932]
[1743172656979,12.517736,1887.3,1886.9,10.59925]
[1743172657189,7.218976,1887.3,1886.9,5.29953]
[1743172657603,12.517706,1887.3,1887.0,5.29936]
[1743172657802,7.218966,1887.3,1887.0,5.2994]
[1743172658191,12.517706,1887.3,1887.0,5.2994]
[1743172658392,1.2517706,1887.2,1887.0,5.2994]
[1743172659087,6.5506306,1887.2,1886.9,5.29953]
[1743172659284,1.2517706,1887.2,1886.9,10.59908]
[1743172659485,11.37976,1887.3,1886.9,10.59912]
[1743172659885,6.08103,1887.3,1886.9,10.59912]
[1743172660307,6.08095,1887.3,1887.0,10.59864]
[1743172660492,0.7823,1887.3,1887.0,10.59864]
[1743172660698,0.7823,1887.3,1887.0,10.59857]
[1743172661014,0.7823,1887.3,1887.1,5.29905]
[1743172661233,9.06128,1887.5,1887.1,5.29888]
[1743172661382,6.204418,1887.4,1887.1,5.29888]
[1743172661785,0.906128,1887.4,1887.1,10.59793]
[1743172661986,3.7632,1887.5,1887.2,5.29871]
[1743172662286,9.06127,1887.5,1887.2,5.29871]
[1743172662907,3.7632,1887.5,1887.2,5.29871]
[1743172663097,3.7632,1887.5,1887.2,5.29867]
[1743172663292,9.06134,1887.5,1887.1,10.59812]
[1743172663519,10.497249,1887.5,1887.2,5.29875]
[1743172663718,5.199109,1887.5,1887.3,5.29843]
[1743172663906,3.7962,1887.7,1887.5,5.29789]
[1743172664117,2.36956986,1887.8,1887.5,5.29787]
[1743172664329,7.66683986,1887.8,1887.5,5.29796]
[1743172664494,0.76668399,1887.7,1887.4,5.29817]
[1743172664700,0.76668399,1887.7,1887.4,10.59631]
[1743172664899,0.76668399,1887.7,1887.4,5.29814]
[1743172665305,2.36956986,1887.8,1887.7,5.29745]
[1743172665723,2.36956986,1887.8,1887.7,6.05485]
[1743172666836,9.86e-06,1887.8,1887.7,6.10781941]
[1743172667041,6.08986,1888.6,1888.3,5.29568]
[1743172667339,6.08986,1888.6,1888.1,5.29624]
[1743172667340,5.29535,1888.5,1888.1,5.29624]
[1743172667502,5.29535,1888.5,1887.8,6.05434]
[1743172667503,5.29568,1888.4,1888.0,5.29659]
[1743172667831,0.7949,1888.2,1888.0,5.2966]
[1743172668139,3.7949,1888.5,1888.2,5.29586]
[1743172668304,9.09011,1888.5,1888.2,5.29586]
[1743172668631,5.29548,1888.4,1888.1,5.29629]
[1743172668838,9.09011,1888.5,1888.1,10.59244]
[1743172669155,9.999121,1888.5,1888.1,5.29613]
[1743172669799,9.999121,1888.5,1888.1,10.59224]
[1743172670021,4.703911,1888.5,1888.1,10.59231]
[1743172670219,9.999211,1888.5,1888.1,5.29611]
[1743172670426,9.999211,1888.5,1888.2,5.29604]
[1743172670813,5.29573,1888.4,1888.0,5.29643]
[1743172671000,5.29573,1888.4,1888.0,5.29642]
[1743172671200,5.29573,1888.4,1888.1,5.29623]
[1743172671400,15.294641,1888.5,1888.1,5.29623]
[1743172671703,9.999251,1888.5,1888.1,5.29623]
[1743172671903,5.2955,1888.4,1888.0,5.29658]
[1743172672107,5.2955,1888.4,1888.0,5.29646]
[1743172672448,5.2955,1888.4,1888.1,5.29626]
[1743172672625,9.999201,1888.5,1888.2,5.29603]
[1743172672931,5.29561,1888.4,1888.1,5.29626]
[1743172673527,9.999201,1888.5,1888.1,5.29615]
[1743172673726,9.999201,1888.5,1888.2,5.29603]
[1743172674806,9.999201,1888.5,1888.1,5.29615]
[1743172675001,6.2954101,1888.4,1888.1,5.29615]
[1743172675201,0.9999201,1888.4,1888.1,5.29615]
[1743172675634,6.2955001,1888.4,1888.1,5.29615]
[1743172675945,5.29589,1888.3,1888.0,5.29658]
[1743172676153,9.999161,1888.5,1888.1,5.29618]
[1743172676350,15.294561,1888.5,1888.1,5.29618]
[1743172676704,15.294601,1888.5,1888.1,5.29618]
[1743172676905,5.29553,1888.4,1888.1,5.29618]
[1743172677353,6.8249991,1888.4,1888.0,10.59307]
[1743172677716,1.5294691,1888.4,1888.1,5.29624]